[Event "Early-Titled-Tuesday-Blitz-January-30-2024"]
[Site "Chess.com"]
[Date "2024.01.30"]
[Round "1"]
[White "LeoLV10"]
[Black "dretch"]
[Result "0-1"]
[WhiteElo "2442"]
[BlackElo "2794"]
[TimeControl "180+1"]
[EndTime "8:06:22 PST"]
[Termination "dretch won by resignation"]

1. e4 {[%clk 0:03:00.9]} 1... e6 {[%clk 0:02:59.9]} 2. d4 {[%clk 0:03:00.8]}
2... d5 {[%clk 0:02:59.7]} 3. e5 {[%clk 0:03:01.7]} 3... c5 {[%clk 0:02:59.6]}
4. c3 {[%clk 0:03:02.4]} 4... Bd7 {[%clk 0:02:58.4]} 5. Nf3 {[%clk 0:03:02.1]}
5... Nc6 {[%clk 0:02:58.3]} 6. a3 {[%clk 0:03:02.8]} 6... f6 {[%clk 0:02:57.8]}
7. Be2 {[%clk 0:03:01.1]} 7... fxe5 {[%clk 0:02:55.7]} 8. Nxe5 {[%clk 0:03:02]}
8... Nf6 {[%clk 0:02:52.9]} 9. O-O {[%clk 0:03:01.3]} 9... Bd6 {[%clk
0:02:52.9]} 10. Bf4 {[%clk 0:02:49]} 10... Qc7 {[%clk 0:02:52.4]} 11. Re1 {[%clk
0:02:29.3]} 11... O-O {[%clk 0:02:50.8]} 12. Nxd7 {[%clk 0:02:17.2]} 12... Bxf4
{[%clk 0:02:38.6]} 13. Nxf8 {[%clk 0:02:12]} 13... Bxh2+ {[%clk 0:02:38.6]} 14.
Kf1 {[%clk 0:02:12.4]} 14... Rxf8 {[%clk 0:02:37.8]} 15. Bf3 {[%clk 0:02:12.7]}
15... e5 {[%clk 0:02:21.9]} 16. dxe5 {[%clk 0:02:10.4]} 16... Nxe5 {[%clk
0:02:22.2]} 17. Bxd5+ {[%clk 0:02:07.7]} 17... Kh8 {[%clk 0:02:22.5]} 18. c4
{[%clk 0:02:03.3]} 18... Nfg4 {[%clk 0:02:17.7]} 19. f3 {[%clk 0:01:53.7]} 19...
Qe7 {[%clk 0:02:02.2]} 20. Nc3 {[%clk 0:01:42.4]} 20... Qh4 {[%clk 0:02:00]} 21.
Ne4 {[%clk 0:01:30.4]} 21... Bf4 {[%clk 0:01:21.7]} 22. Ke2 {[%clk 0:01:09.1]}
22... Qh2 {[%clk 0:01:19.2]} 23. Rg1 {[%clk 0:01:05.4]} 23... Ne3 {[%clk
0:00:49.7]} 24. Qe1 {[%clk 0:00:58.5]} 24... Nxd5 {[%clk 0:00:37.1]} 25. cxd5
{[%clk 0:00:50.2]} 25... Nxf3 {[%clk 0:00:37.1]} 26. Qf2 {[%clk 0:00:36.6]}
26... Nxg1+ {[%clk 0:00:33.5]} 27. Rxg1 {[%clk 0:00:35.1]} 27... Qh5+ {[%clk
0:00:33.4]} 28. Kd3 {[%clk 0:00:34.5]} 28... Qxd5+ {[%clk 0:00:34.3]} 29. Kc3
{[%clk 0:00:30.5]} 29... Be5+ {[%clk 0:00:33.8]} 30. Kc2 {[%clk 0:00:28.8]}
30... Qxe4+ {[%clk 0:00:33.7]} 31. Kc1 {[%clk 0:00:29.4]} 31... Rxf2 {[%clk
0:00:33.3]} 0-1

[Event "Early-Titled-Tuesday-Blitz-January-30-2024"]
[Site "Chess.com"]
[Date "2024.01.30"]
[Round "1"]
[White "YurasovMat-2012"]
[Black "WiktoriaPOL"]
[Result "1-0"]
[WhiteElo "2609"]
[BlackElo "2258"]
[TimeControl "180+1"]
[EndTime "8:06:22 PST"]
[Termination "YurasovMat-2012 won on time"]

1. e4 {[%clk 0:03:00.9]} 1... c5 {[%clk 0:02:59.3]} 2. Nf3 {[%clk 0:02:59.8]}
2... d6 {[%clk 0:02:59.2]} 3. Bb5+ {[%clk 0:02:59.6]} 3... Nd7 {[%clk
0:02:58.7]} 4. O-O {[%clk 0:02:58.7]} 4... Nf6 {[%clk 0:02:57.5]} 5. Re1 {[%clk
0:02:58.2]} 5... a6 {[%clk 0:02:56.4]} 6. Bxd7+ {[%clk 0:02:56.4]} 6... Bxd7
{[%clk 0:02:56.7]} 7. e5 {[%clk 0:02:56.5]} 7... dxe5 {[%clk 0:02:49.9]} 8. Nxe5
{[%clk 0:02:57.4]} 8... Be6 {[%clk 0:02:48.2]} 9. d3 {[%clk 0:02:50.3]} 9... g6
{[%clk 0:02:46.4]} 10. Qf3 {[%clk 0:02:43]} 10... Bd5 {[%clk 0:02:39.1]} 11. Qh3
{[%clk 0:02:34.8]} 11... Bg7 {[%clk 0:02:36.2]} 12. Bh6 {[%clk 0:02:34.3]} 12...
Be6 {[%clk 0:02:32.8]} 13. Qh4 {[%clk 0:02:32.3]} 13... O-O {[%clk 0:02:26.3]}
14. Nd2 {[%clk 0:02:31.7]} 14... Qd5 {[%clk 0:01:57.2]} 15. Ndf3 {[%clk
0:02:27.9]} 15... Bf5 {[%clk 0:01:45.3]} 16. h3 {[%clk 0:02:13.7]} 16... Bxh6
{[%clk 0:00:59.6]} 17. Qxh6 {[%clk 0:02:12.7]} 17... b5 {[%clk 0:00:44]} 18. Ng5
{[%clk 0:02:07.2]} 18... Bc8 {[%clk 0:00:35.6]} 19. Nef3 {[%clk 0:01:55.9]}
19... Qd6 {[%clk 0:00:24.5]} 20. Re5 {[%clk 0:01:50.4]} 20... Bb7 {[%clk
0:00:23.6]} 21. Rae1 {[%clk 0:01:49.5]} 21... Rae8 {[%clk 0:00:18.4]} 22. Qh4
{[%clk 0:01:48.4]} 22... Kg7 {[%clk 0:00:14.8]} 23. Nd2 {[%clk 0:01:43.2]} 23...
h6 {[%clk 0:00:14.4]} 24. Ngf3 {[%clk 0:01:43.3]} 24... e6 {[%clk 0:00:09.8]}
25. Qf4 {[%clk 0:01:38]} 25... Nd7 {[%clk 0:00:09.1]} 26. Ne4 {[%clk 0:01:18]}
26... Bxe4 {[%clk 0:00:07.4]} 27. R5xe4 {[%clk 0:01:17.9]} 27... Qxf4 {[%clk
0:00:06.7]} 28. Rxf4 {[%clk 0:01:18.3]} 28... f5 {[%clk 0:00:06.8]} 29. Nd2
{[%clk 0:01:14.9]} 29... e5 {[%clk 0:00:06.7]} 30. Rf3 {[%clk 0:01:15]} 30...
Kf6 {[%clk 0:00:05.8]} 31. Rfe3 {[%clk 0:01:15]} 31... Nb6 {[%clk 0:00:04.8]}
32. f4 {[%clk 0:01:13.7]} 32... Nd7 {[%clk 0:00:03.4]} 33. Nf3 {[%clk
0:01:12.3]} 33... Re7 {[%clk 0:00:01.5]} 34. fxe5+ {[%clk 0:01:11.8]} 1-0

[Event "Early-Titled-Tuesday-Blitz-January-30-2024"]
[Site "Chess.com"]
[Date "2024.01.30"]
[Round "1"]
[White "hakanazeri2"]
[Black "Better_Chess_Faster"]
[Result "1-0"]
[WhiteElo "2576"]
[BlackElo "2142"]
[TimeControl "180+1"]
[EndTime "8:06:22 PST"]
[Termination "hakanazeri2 won by checkmate"]

1. Nf3 {[%clk 0:02:56]} 1... d5 {[%clk 0:02:58.9]} 2. d4 {[%clk 0:02:54.1]} 2...
Nf6 {[%clk 0:02:57.7]} 3. c4 {[%clk 0:02:53.5]} 3... c6 {[%clk 0:02:57.3]} 4.
Nc3 {[%clk 0:02:53.5]} 4... e6 {[%clk 0:02:56.7]} 5. Bg5 {[%clk 0:02:52.9]} 5...
dxc4 {[%clk 0:02:56.1]} 6. e4 {[%clk 0:02:53]} 6... b5 {[%clk 0:02:56.1]} 7. e5
{[%clk 0:02:52.3]} 7... h6 {[%clk 0:02:56]} 8. Bh4 {[%clk 0:02:50.6]} 8... g5
{[%clk 0:02:56.1]} 9. Nxg5 {[%clk 0:02:51.3]} 9... hxg5 {[%clk 0:02:56]} 10.
Bxg5 {[%clk 0:02:52.2]} 10... Be7 {[%clk 0:02:56.3]} 11. exf6 {[%clk 0:02:51.7]}
11... Bxf6 {[%clk 0:02:55.9]} 12. Bxf6 {[%clk 0:02:52.4]} 12... Qxf6 {[%clk
0:02:56.1]} 13. g3 {[%clk 0:02:52.7]} 13... Bb7 {[%clk 0:02:44.9]} 14. Bg2
{[%clk 0:02:48.9]} 14... Na6 {[%clk 0:02:44.8]} 15. a4 {[%clk 0:02:45.3]} 15...
Nb4 {[%clk 0:02:42.2]} 16. O-O {[%clk 0:02:40.8]} 16... Nd5 {[%clk 0:02:22.5]}
17. axb5 {[%clk 0:02:31.5]} 17... cxb5 {[%clk 0:02:05.5]} 18. Nxb5 {[%clk
0:02:27.8]} 18... O-O {[%clk 0:01:34.3]} 19. Nd6 {[%clk 0:02:15.3]} 19... Bc6
{[%clk 0:01:24]} 20. Nxc4 {[%clk 0:02:09.7]} 20... Rfd8 {[%clk 0:01:16.6]} 21.
Qg4+ {[%clk 0:02:02.8]} 21... Qg7 {[%clk 0:01:09.6]} 22. Qxg7+ {[%clk
0:01:51.7]} 22... Kxg7 {[%clk 0:01:10.5]} 23. Ne5 {[%clk 0:01:52]} 23... Bb5
{[%clk 0:01:06.5]} 24. Rfc1 {[%clk 0:01:50.4]} 24... f6 {[%clk 0:00:55]} 25. Ng4
{[%clk 0:01:48.1]} 25... a6 {[%clk 0:00:46.4]} 26. Ne3 {[%clk 0:01:46.6]} 26...
Rab8 {[%clk 0:00:39.1]} 27. Bxd5 {[%clk 0:01:27.7]} 27... exd5 {[%clk 0:00:40]}
28. Rc7+ {[%clk 0:01:27.5]} 28... Kg6 {[%clk 0:00:36.4]} 29. g4 {[%clk
0:01:24.1]} 29... Bd3 {[%clk 0:00:35.9]} 30. h4 {[%clk 0:01:15.4]} 30... Rxb2
{[%clk 0:00:34.4]} 31. f4 {[%clk 0:01:06.4]} 31... f5 {[%clk 0:00:23.5]} 32.
gxf5+ {[%clk 0:00:49.1]} 32... Kh5 {[%clk 0:00:22.9]} 33. Rh7# {[%clk
0:00:48.8]} 1-0

[Event "Early-Titled-Tuesday-Blitz-January-30-2024"]
[Site "Chess.com"]
[Date "2024.01.30"]
[Round "1"]
[White "SashaKuzhilniy"]
[Black "Al_Shima"]
[Result "0-1"]
[WhiteElo "2612"]
[BlackElo "2319"]
[TimeControl "180+1"]
[EndTime "8:06:23 PST"]
[Termination "Al_Shima won by resignation"]

1. c4 {[%clk 0:03:00.2]} 1... e5 {[%clk 0:02:59.4]} 2. d3 {[%clk 0:02:59.2]}
2... Nf6 {[%clk 0:02:59.6]} 3. Nf3 {[%clk 0:02:58.1]} 3... Nc6 {[%clk 0:02:59]}
4. Nc3 {[%clk 0:02:58.6]} 4... Bb4 {[%clk 0:02:58.7]} 5. Bd2 {[%clk 0:02:57.6]}
5... O-O {[%clk 0:02:58.6]} 6. g3 {[%clk 0:02:57]} 6... Re8 {[%clk 0:02:58.8]}
7. Bg2 {[%clk 0:02:57.4]} 7... a5 {[%clk 0:02:55.7]} 8. O-O {[%clk 0:02:56.3]}
8... d6 {[%clk 0:02:56.1]} 9. a3 {[%clk 0:02:49.6]} 9... Bc5 {[%clk 0:02:56.1]}
10. Rb1 {[%clk 0:02:50.2]} 10... h6 {[%clk 0:02:49.3]} 11. Na4 {[%clk
0:02:40.6]} 11... Ba7 {[%clk 0:02:46.6]} 12. b4 {[%clk 0:02:40.5]} 12... axb4
{[%clk 0:02:47.5]} 13. axb4 {[%clk 0:02:41.4]} 13... e4 {[%clk 0:02:38.6]} 14.
dxe4 {[%clk 0:02:38.5]} 14... Nxe4 {[%clk 0:02:38.4]} 15. b5 {[%clk 0:02:33.3]}
15... Nxd2 {[%clk 0:02:20.7]} 16. Nxd2 {[%clk 0:02:32.9]} 16... Ne5 {[%clk
0:02:15.6]} 17. Qc2 {[%clk 0:02:15.5]} 17... Nd7 {[%clk 0:01:34.1]} 18. Ne4
{[%clk 0:02:06.5]} 18... Nb6 {[%clk 0:01:16.1]} 19. Nxb6 {[%clk 0:01:54.4]}
19... Bxb6 {[%clk 0:01:16.3]} 20. c5 {[%clk 0:01:54.8]} 20... dxc5 {[%clk
0:00:46.9]} 21. Nxc5 {[%clk 0:01:55.7]} 21... Qe7 {[%clk 0:00:45.3]} 22. Nxb7
{[%clk 0:01:38.5]} 22... Rb8 {[%clk 0:00:34.2]} 23. Bc6 {[%clk 0:01:28.6]} 23...
Bxb7 {[%clk 0:00:32.3]} 24. Bxe8 {[%clk 0:01:28.7]} 24... Qxe8 {[%clk
0:00:33.2]} 25. Rfd1 {[%clk 0:01:25]} 25... Qe6 {[%clk 0:00:29.7]} 26. Rb3
{[%clk 0:01:17]} 26... Qh3 {[%clk 0:00:19.8]} 27. e4 {[%clk 0:01:15.2]} 27...
Re8 {[%clk 0:00:17.9]} 28. Re1 {[%clk 0:01:13.6]} 28... f5 {[%clk 0:00:14.2]}
29. Qc4+ {[%clk 0:01:09.5]} 29... Kh7 {[%clk 0:00:13.5]} 30. Qf7 {[%clk
0:01:09.9]} 30... Rxe4 {[%clk 0:00:12.4]} 0-1

[Event "Early-Titled-Tuesday-Blitz-January-30-2024"]
[Site "Chess.com"]
[Date "2024.01.30"]
[Round "1"]
[White "baki83"]
[Black "Maxfan2008"]
[Result "0-1"]
[WhiteElo "2814"]
[BlackElo "2480"]
[TimeControl "180+1"]
[EndTime "8:06:24 PST"]
[Termination "Maxfan2008 won by resignation"]

1. e4 {[%clk 0:01:56.4]} 1... c5 {[%clk 0:02:57.2]} 2. Nf3 {[%clk 0:01:55.4]}
2... e6 {[%clk 0:02:56.5]} 3. c3 {[%clk 0:01:55.3]} 3... d5 {[%clk 0:02:55.4]}
4. e5 {[%clk 0:01:55.5]} 4... d4 {[%clk 0:02:54]} 5. d3 {[%clk 0:01:55.7]} 5...
Nc6 {[%clk 0:02:51.7]} 6. g3 {[%clk 0:01:55.1]} 6... Nge7 {[%clk 0:02:51]} 7.
Bg2 {[%clk 0:01:55.3]} 7... Ng6 {[%clk 0:02:50.7]} 8. Qe2 {[%clk 0:01:55.7]}
8... Qc7 {[%clk 0:02:49.2]} 9. O-O {[%clk 0:01:42.4]} 9... Ncxe5 {[%clk
0:02:47.4]} 10. cxd4 {[%clk 0:01:38.1]} 10... cxd4 {[%clk 0:02:44]} 11. Nxe5
{[%clk 0:01:20.3]} 11... Qxe5 {[%clk 0:02:41.7]} 12. Be4 {[%clk 0:01:16.6]}
12... Be7 {[%clk 0:02:39.7]} 13. Nd2 {[%clk 0:01:14.1]} 13... Bd7 {[%clk
0:02:36.8]} 14. h4 {[%clk 0:01:02.9]} 14... O-O {[%clk 0:02:33.4]} 15. h5 {[%clk
0:00:58.7]} 15... f5 {[%clk 0:02:33.1]} 16. Nc4 {[%clk 0:00:52.2]} 16... Qc7
{[%clk 0:02:29.6]} 17. Bg2 {[%clk 0:00:44.6]} 17... b5 {[%clk 0:02:11.2]} 18.
hxg6 {[%clk 0:00:36.7]} 18... bxc4 {[%clk 0:02:10.3]} 19. Bf4 {[%clk 0:00:27.5]}
19... Bd6 {[%clk 0:02:07.7]} 20. Bxd6 {[%clk 0:00:24.3]} 20... Qxd6 {[%clk
0:02:08.6]} 21. gxh7+ {[%clk 0:00:22.2]} 21... Kxh7 {[%clk 0:02:06.8]} 22. Bxa8
{[%clk 0:00:20.7]} 22... Rxa8 {[%clk 0:02:07.7]} 23. dxc4 {[%clk 0:00:21.1]}
23... Bc6 {[%clk 0:02:05.3]} 24. Rad1 {[%clk 0:00:18.6]} 24... e5 {[%clk
0:02:01.8]} 25. Qh5+ {[%clk 0:00:17.2]} 25... Kg8 {[%clk 0:01:58.9]} 26. Rfe1
{[%clk 0:00:17.7]} 26... Be4 {[%clk 0:01:55.4]} 27. f3 {[%clk 0:00:17.8]} 27...
g6 {[%clk 0:01:51]} 28. Qh1 {[%clk 0:00:15.1]} 28... Bc6 {[%clk 0:01:49.9]} 29.
Rd2 {[%clk 0:00:14.5]} 29... d3 {[%clk 0:01:49]} 30. Rh2 {[%clk 0:00:14.6]}
30... Qd4+ {[%clk 0:01:47.7]} 31. Kg2 {[%clk 0:00:13.8]} 31... e4 {[%clk
0:01:46.6]} 32. fxe4 {[%clk 0:00:11.6]} 32... Bxe4+ {[%clk 0:01:43.6]} 33. Rxe4
{[%clk 0:00:11.6]} 33... fxe4 {[%clk 0:01:42.6]} 34. Qd1 {[%clk 0:00:09]} 34...
Rf8 {[%clk 0:01:40.3]} 35. c5 {[%clk 0:00:08.9]} 35... Rf2+ {[%clk 0:01:35.1]}
36. Kh1 {[%clk 0:00:08.9]} 36... Rxh2+ {[%clk 0:01:33.2]} 37. Kxh2 {[%clk
0:00:09.4]} 37... e3 {[%clk 0:01:32.9]} 38. c6 {[%clk 0:00:08.9]} 38... e2
{[%clk 0:01:32.3]} 39. Qb3+ {[%clk 0:00:09.3]} 39... Kg7 {[%clk 0:01:30.3]} 40.
Qb7+ {[%clk 0:00:08.9]} 40... Kh6 {[%clk 0:01:28.9]} 41. Qe7 {[%clk 0:00:07.9]}
41... Qf2+ {[%clk 0:01:27.4]} 42. Kh3 {[%clk 0:00:08.3]} 42... e1=Q {[%clk
0:01:22.7]} 43. Qh4+ {[%clk 0:00:07.8]} 43... Kg7 {[%clk 0:01:23.3]} 0-1

[Event "Early-Titled-Tuesday-Blitz-January-30-2024"]
[Site "Chess.com"]
[Date "2024.01.30"]
[Round "1"]
[White "GatoRojo150"]
[Black "pirulillo"]
[Result "0-1"]
[WhiteElo "2591"]
[BlackElo "2269"]
[TimeControl "180+1"]
[EndTime "8:06:24 PST"]
[Termination "pirulillo won by resignation"]

1. e4 {[%clk 0:02:55.1]} 1... c5 {[%clk 0:02:59]} 2. Nf3 {[%clk 0:02:53.8]} 2...
e6 {[%clk 0:02:58.9]} 3. Nc3 {[%clk 0:02:53.2]} 3... Nc6 {[%clk 0:02:58.5]} 4.
d4 {[%clk 0:02:53.4]} 4... cxd4 {[%clk 0:02:58]} 5. Nxd4 {[%clk 0:02:54.3]} 5...
Nf6 {[%clk 0:02:58.3]} 6. Ndb5 {[%clk 0:02:54]} 6... d6 {[%clk 0:02:57.9]} 7.
Bf4 {[%clk 0:02:52.9]} 7... e5 {[%clk 0:02:57.9]} 8. Bg5 {[%clk 0:02:53.4]} 8...
a6 {[%clk 0:02:58.2]} 9. Na3 {[%clk 0:02:53.4]} 9... b5 {[%clk 0:02:58.3]} 10.
Bxf6 {[%clk 0:02:53.6]} 10... gxf6 {[%clk 0:02:58.4]} 11. Nd5 {[%clk 0:02:54.2]}
11... Bg7 {[%clk 0:02:58.5]} 12. c3 {[%clk 0:02:51.9]} 12... Ne7 {[%clk
0:02:58.5]} 13. Nxe7 {[%clk 0:02:51.5]} 13... Qxe7 {[%clk 0:02:58.6]} 14. Nc2
{[%clk 0:02:49.7]} 14... f5 {[%clk 0:02:57.1]} 15. a4 {[%clk 0:02:47.6]} 15...
fxe4 {[%clk 0:02:50.1]} 16. axb5 {[%clk 0:02:45.7]} 16... O-O {[%clk 0:02:41.2]}
17. bxa6 {[%clk 0:02:42.8]} 17... f5 {[%clk 0:02:40.6]} 18. Bc4+ {[%clk
0:02:37.3]} 18... Kh8 {[%clk 0:02:40.1]} 19. O-O {[%clk 0:02:33]} 19... f4
{[%clk 0:02:38.3]} 20. Bd5 {[%clk 0:02:30.3]} 20... Rxa6 {[%clk 0:02:33.7]} 21.
Bxe4 {[%clk 0:02:25.2]} 21... Rxa1 {[%clk 0:02:28.7]} 22. Nxa1 {[%clk
0:02:19.7]} 22... Bb7 {[%clk 0:01:50.8]} 23. Bxb7 {[%clk 0:02:00.1]} 23... Qxb7
{[%clk 0:01:51.7]} 24. b4 {[%clk 0:01:52.3]} 24... d5 {[%clk 0:01:44.2]} 25. Nb3
{[%clk 0:01:51.8]} 25... e4 {[%clk 0:01:40.7]} 26. Nc5 {[%clk 0:01:42.7]} 26...
Qc6 {[%clk 0:01:35.1]} 27. Qd2 {[%clk 0:01:42.4]} 27... f3 {[%clk 0:01:28.3]}
28. g3 {[%clk 0:01:36.4]} 28... Qc8 {[%clk 0:01:18.3]} 29. Kh1 {[%clk
0:01:03.2]} 29... Qh3 {[%clk 0:01:17]} 30. Rg1 {[%clk 0:01:03.6]} 30... Rf5
{[%clk 0:01:16.8]} 31. g4 {[%clk 0:00:16.3]} 31... Be5 {[%clk 0:01:15.9]} 32.
Rg3 {[%clk 0:00:09.6]} 32... Bxg3 {[%clk 0:01:15.1]} 33. fxg3 {[%clk 0:00:10]}
33... f2 {[%clk 0:01:13.2]} 34. Qd4+ {[%clk 0:00:10.1]} 34... Kg8 {[%clk
0:01:10.5]} 35. Ne6 {[%clk 0:00:09.2]} 35... f1=Q+ {[%clk 0:01:07.4]} 0-1

[Event "Early-Titled-Tuesday-Blitz-January-30-2024"]
[Site "Chess.com"]
[Date "2024.01.30"]
[Round "1"]
[White "AlexLongson"]
[Black "Orujov2008"]
[Result "0-1"]
[WhiteElo "2396"]
[BlackElo "2731"]
[TimeControl "180+1"]
[EndTime "8:06:25 PST"]
[Termination "Orujov2008 won on time"]

1. e4 {[%clk 0:03:00.9]} 1... c5 {[%clk 0:02:59.5]} 2. Nf3 {[%clk 0:03:00.7]}
2... d6 {[%clk 0:03:00.2]} 3. Bb5+ {[%clk 0:03:00.7]} 3... Nd7 {[%clk
0:02:59.4]} 4. d4 {[%clk 0:03:00.2]} 4... cxd4 {[%clk 0:02:59.2]} 5. Qxd4 {[%clk
0:03:00.6]} 5... a6 {[%clk 0:02:59.6]} 6. Bxd7+ {[%clk 0:02:59.8]} 6... Bxd7
{[%clk 0:03:00.5]} 7. c4 {[%clk 0:02:59.9]} 7... e5 {[%clk 0:03:00.7]} 8. Qd3
{[%clk 0:02:58.8]} 8... h6 {[%clk 0:03:00.2]} 9. Nc3 {[%clk 0:02:56.4]} 9... Nf6
{[%clk 0:02:45.2]} 10. O-O {[%clk 0:02:52.2]} 10... Be7 {[%clk 0:02:40.1]} 11.
b3 {[%clk 0:02:51.6]} 11... O-O {[%clk 0:02:35.6]} 12. a4 {[%clk 0:02:51]} 12...
b5 {[%clk 0:02:31.3]} 13. axb5 {[%clk 0:02:31]} 13... axb5 {[%clk 0:02:32.2]}
14. Rxa8 {[%clk 0:02:30.8]} 14... Qxa8 {[%clk 0:02:33.1]} 15. cxb5 {[%clk
0:02:28.3]} 15... Rc8 {[%clk 0:02:27.1]} 16. Bb2 {[%clk 0:02:08.4]} 16... Qa5
{[%clk 0:02:20.1]} 17. Ra1 {[%clk 0:01:43.2]} 17... Qb4 {[%clk 0:02:18.7]} 18.
Nd2 {[%clk 0:01:43.1]} 18... Be6 {[%clk 0:01:39.3]} 19. Ra4 {[%clk 0:01:34]}
19... Qc5 {[%clk 0:01:39.1]} 20. h3 {[%clk 0:01:14.9]} 20... Nd7 {[%clk
0:01:34.9]} 21. Nc4 {[%clk 0:01:12.1]} 21... Nb6 {[%clk 0:01:30.5]} 22. Ba3
{[%clk 0:00:59.2]} 22... Qc7 {[%clk 0:01:29]} 23. Nxb6 {[%clk 0:00:22.3]} 23...
Qxb6 {[%clk 0:01:29.9]} 24. Ra6 {[%clk 0:00:17.7]} 24... Qd4 {[%clk 0:01:27.4]}
25. Qxd4 {[%clk 0:00:13.2]} 25... exd4 {[%clk 0:01:28.3]} 26. Nd5 {[%clk
0:00:13.9]} 26... Bxd5 {[%clk 0:01:15.8]} 27. exd5 {[%clk 0:00:14.8]} 27... d3
{[%clk 0:01:16.7]} 28. Bb4 {[%clk 0:00:10.3]} 28... Rb8 {[%clk 0:01:12.9]} 29.
b6 {[%clk 0:00:08.9]} 29... Bg5 {[%clk 0:01:09.5]} 30. Kf1 {[%clk 0:00:08.6]}
30... d2 {[%clk 0:01:03.6]} 31. Ke2 {[%clk 0:00:08.4]} 31... Re8+ {[%clk
0:01:01.1]} 0-1

[Event "Early-Titled-Tuesday-Blitz-January-30-2024"]
[Site "Chess.com"]
[Date "2024.01.30"]
[Round "1"]
[White "cthulhuuu"]
[Black "Mackster23"]
[Result "0-1"]
[WhiteElo "2352"]
[BlackElo "2670"]
[TimeControl "180+1"]
[EndTime "8:06:25 PST"]
[Termination "Mackster23 won by resignation"]

1. e4 {[%clk 0:02:59.8]} 1... c5 {[%clk 0:03:00.2]} 2. Nf3 {[%clk 0:03:00]} 2...
d6 {[%clk 0:03:00.6]} 3. g3 {[%clk 0:03:00.3]} 3... Nf6 {[%clk 0:03:00.2]} 4. d3
{[%clk 0:03:01]} 4... Nc6 {[%clk 0:02:59.9]} 5. Bg2 {[%clk 0:03:01.4]} 5... g6
{[%clk 0:02:58.6]} 6. O-O {[%clk 0:03:01.7]} 6... Bg7 {[%clk 0:02:59.2]} 7. Re1
{[%clk 0:03:02.2]} 7... O-O {[%clk 0:02:59.6]} 8. e5 {[%clk 0:03:02.6]} 8...
dxe5 {[%clk 0:02:59]} 9. Nxe5 {[%clk 0:03:03.5]} 9... Nxe5 {[%clk 0:02:58.8]}
10. Rxe5 {[%clk 0:03:04.4]} 10... Nd7 {[%clk 0:02:58.3]} 11. Re1 {[%clk
0:03:04.1]} 11... e6 {[%clk 0:02:55]} 12. Nc3 {[%clk 0:02:52.3]} 12... Nb6
{[%clk 0:02:54.6]} 13. Ne4 {[%clk 0:02:52.2]} 13... Qc7 {[%clk 0:02:50.5]} 14.
Bf4 {[%clk 0:02:44.6]} 14... e5 {[%clk 0:02:50.6]} 15. Be3 {[%clk 0:02:45]}
15... f5 {[%clk 0:02:35.7]} 16. Nxc5 {[%clk 0:02:10.9]} 16... f4 {[%clk
0:02:35.7]} 17. Na6 {[%clk 0:02:11.3]} 17... bxa6 {[%clk 0:02:32.5]} 18. Bxb6
{[%clk 0:02:11.1]} 18... Qxb6 {[%clk 0:02:25]} 19. Bxa8 {[%clk 0:02:11.4]} 19...
fxg3 {[%clk 0:02:24.4]} 20. hxg3 {[%clk 0:01:45.2]} 20... Qxf2+ {[%clk
0:02:10.3]} 21. Kh1 {[%clk 0:01:45.4]} 21... Qxg3 {[%clk 0:01:56]} 22. Re2
{[%clk 0:01:38.2]} 22... Bg4 {[%clk 0:01:53]} 23. Qe1 {[%clk 0:01:24.2]} 23...
Qxe1+ {[%clk 0:01:37.7]} 24. Raxe1 {[%clk 0:01:02.1]} 24... Rxa8 {[%clk
0:01:38]} 25. Rf2 {[%clk 0:01:02.5]} 25... Bf5 {[%clk 0:01:36.8]} 26. Rg1 {[%clk
0:00:51]} 26... h5 {[%clk 0:01:31.6]} 27. Kh2 {[%clk 0:00:44]} 27... Kf7 {[%clk
0:01:28.3]} 28. Kg3 {[%clk 0:00:39.2]} 28... Rd8 {[%clk 0:01:26.1]} 29. Kf3
{[%clk 0:00:35.5]} 29... Rd4 {[%clk 0:01:22.7]} 30. Ke2 {[%clk 0:00:32.4]} 30...
h4 {[%clk 0:01:19.1]} 31. Rf3 {[%clk 0:00:27.8]} 31... Bh6 {[%clk 0:01:15.8]}
32. c3 {[%clk 0:00:26.7]} 32... Rd6 {[%clk 0:01:04.5]} 33. Rh1 {[%clk
0:00:23.9]} 33... Bg5 {[%clk 0:01:04.7]} 34. Rg1 {[%clk 0:00:19.9]} 34... Bf6
{[%clk 0:01:04.4]} 35. Kd2 {[%clk 0:00:17.5]} 35... e4 {[%clk 0:01:03.7]} 0-1

[Event "Early-Titled-Tuesday-Blitz-January-30-2024"]
[Site "Chess.com"]
[Date "2024.01.30"]
[Round "1"]
[White "SmirnovAlexandrA"]
[Black "Louis-Paulsen-Fan"]
[Result "1-0"]
[WhiteElo "2606"]
[BlackElo "2249"]
[TimeControl "180+1"]
[EndTime "8:06:25 PST"]
[Termination "SmirnovAlexandrA won by resignation"]

1. e4 {[%clk 0:03:00.9]} 1... Nf6 {[%clk 0:03:00.2]} 2. Nc3 {[%clk 0:02:54.1]}
2... e5 {[%clk 0:03:00.1]} 3. d4 {[%clk 0:02:53.8]} 3... exd4 {[%clk 0:02:54.9]}
4. Qxd4 {[%clk 0:02:54.7]} 4... Nc6 {[%clk 0:02:54.8]} 5. Qe3 {[%clk 0:02:54.6]}
5... d6 {[%clk 0:02:44.3]} 6. Bd2 {[%clk 0:02:54.2]} 6... Be7 {[%clk 0:02:39]}
7. O-O-O {[%clk 0:02:53.9]} 7... O-O {[%clk 0:02:10.6]} 8. Qg3 {[%clk
0:02:53.4]} 8... Kh8 {[%clk 0:02:08.3]} 9. h4 {[%clk 0:02:53.2]} 9... Nh5 {[%clk
0:01:21.9]} 10. Qh2 {[%clk 0:02:49]} 10... Ne5 {[%clk 0:01:17.9]} 11. f3 {[%clk
0:02:48.4]} 11... c6 {[%clk 0:01:12.2]} 12. g4 {[%clk 0:02:48.1]} 12... Nf6
{[%clk 0:01:12.5]} 13. h5 {[%clk 0:02:34.6]} 13... b5 {[%clk 0:01:09.1]} 14. g5
{[%clk 0:02:33.3]} 14... Nfd7 {[%clk 0:01:06.2]} 15. g6 {[%clk 0:02:32.8]} 15...
h6 {[%clk 0:01:02.5]} 16. f4 {[%clk 0:02:16.4]} 16... Nc4 {[%clk 0:01:02.5]} 17.
Bxc4 {[%clk 0:02:08.5]} 17... bxc4 {[%clk 0:01:03.4]} 18. Nge2 {[%clk
0:02:04.9]} 18... Bf6 {[%clk 0:01:01.9]} 19. Be3 {[%clk 0:02:00.7]} 19... Qe7
{[%clk 0:00:50.1]} 20. Nd4 {[%clk 0:01:57.2]} 20... Bb7 {[%clk 0:00:48.3]} 21.
Nf5 {[%clk 0:01:55.5]} 21... Qd8 {[%clk 0:00:39.3]} 22. Rxd6 {[%clk 0:01:53]}
22... Bxc3 {[%clk 0:00:21.2]} 23. bxc3 {[%clk 0:01:46.8]} 23... Qa5 {[%clk
0:00:21.2]} 24. Bd4 {[%clk 0:01:31]} 24... f6 {[%clk 0:00:17.3]} 25. Rxd7 {[%clk
0:01:28.2]} 25... c5 {[%clk 0:00:17.8]} 26. Rxb7 {[%clk 0:01:16.8]} 26... cxd4
{[%clk 0:00:17.1]} 27. Rxg7 {[%clk 0:01:16.7]} 27... Rfd8 {[%clk 0:00:08.6]} 28.
Rh7+ {[%clk 0:01:02.3]} 28... Kg8 {[%clk 0:00:09]} 29. Nxh6+ {[%clk 0:01:03.2]}
29... Kf8 {[%clk 0:00:09.4]} 30. g7+ {[%clk 0:01:04.1]} 30... Ke7 {[%clk
0:00:06.8]} 31. g8=Q+ {[%clk 0:01:05]} 31... Kd6 {[%clk 0:00:06.8]} 32. Qd5+
{[%clk 0:01:04.8]} 1-0